bitfinex-derivatives/quotes_ETHF0:USTF0_20251012
["timestamp","ask_amount","ask_price","bid_price","bid_amount"]
[1760287525773,3.2078,4168.1,4164.0,3.2078]
[1760287525972,4.2584,4169.0,4161.9,2.5235382]
[1760287526180,3.2078,4164.7,4163.6,3.2078]
[1760287526384,3.2078,4164.7,4154.0,0.9886]
[1760287526385,3.2584,4163.0,4160.0,3.2078]
[1760287526575,3.2078,4162.2,4159.2,3.2078]
[1760287526776,3.2584,4161.6,4158.1,3.2078]
[1760287527080,3.2078,4158.8,4156.0,3.2078]
[1760287527384,3.2078,4155.5,4151.9,3.2078]
[1760287527587,0.00221092,4155.5,4153.3,3.2078]
[1760287527883,3.2078,4157.3,4155.4,3.2078]
[1760287528176,3.2078,4157.3,4153.2,0.2407753]
[1760287528177,3.10798615,4159.9,4157.2,3.2078]
[1760287528380,3.2078,4163.6,4159.8,3.2078]
[1760287528578,2.73631692,4159.8,4156.7,3.9237]
[1760287528789,2.73837732,4159.8,4156.7,0.71887001]
[1760287529083,3.2584,4157.6,4153.4,0.7159]
[1760287529274,3.2584,4157.6,4153.2,0.2407753]
[1760287529275,3.2078,4157.6,4154.7,3.2078]
[1760287529475,3.2078,4155.1,4153.2,0.2407753]
[1760287529681,3.2078,4154.0,4151.6,3.2078]
[1760287529876,3.2078,4153.0,4150.7,0.7159]
[1760287530076,0.00274536,4153.0,4152.0,3.2078]
[1760287530283,0.00274536,4153.0,4150.7,0.71878127]
[1760287530284,0.00274536,4153.0,4151.2,3.2078]
[1760287530486,3.2078,4154.5,4152.9,7.83533305]
[1760287530782,3.2078,4155.4,4153.6,7.83533305]
[1760287530985,10.82306,4155.3,4153.6,3.2078]
[1760287531174,3.2078,4155.0,4154.0,3.2078]
[1760287531379,5.85282098,4155.3,4150.4,3.2078]
[1760287531380,11.26326,4152.6,4150.4,3.2078]
[1760287531580,3.2078,4151.9,4148.9,3.2078]
[1760287531777,3.12557218,4152.5,4151.3,3.2078]
[1760287531981,0.43345,4150.2,4148.2,3.2078]
[1760287532180,3.2078,4151.4,4143.3,10.12]
[1760287532181,0.43341,4150.6,4148.7,3.2078]
[1760287532491,3.2078,4150.2,4148.7,0.00290253]
[1760287532676,10.83299,4151.5,4149.7,3.2078]
[1760287532878,2.73288896,4150.5,4150.2,3.2078]
[1760287533177,0.08836474,4150.6,4150.4,7.83533305]
[1760287533375,3.09809849,4150.4,4150.0,7.83533305]
[1760287533576,10.119,4151.5,4150.0,7.83533305]
[1760287533577,3.2078,4153.9,4150.3,3.2078]
[1760287533775,10.82593,4154.2,4152.5,7.83533305]
[1760287533776,0.43309,4153.7,4152.5,7.83533305]
[1760287533986,0.43309,4153.7,4147.4,10.118]
[1760287533987,10.8267,4153.9,4152.1,7.83533305]
[1760287534177,2.43383546,4153.6,4152.0,3.2078]
[1760287534380,2.43383546,4153.6,4151.5,3.2078]
[1760287534381,10.83082,4152.3,4151.5,3.2078]
[1760287534585,10.82855,4153.2,4145.5,43.364]
[1760287534586,0.43267,4157.7,4152.6,3.2078]
[1760287534782,0.00253856,4157.7,4157.3,3.2078]
[1760287534987,3.2078,4157.5,4157.3,0.00284665]
[1760287535184,3.2078,4157.5,4155.0,7.83533305]
[1760287535381,5.84880954,4157.4,4155.1,3.2078]
[1760287535579,5.84880954,4157.4,4153.9,3.2078]
[1760287535580,3.2078,4156.6,4153.9,3.2078]
[1760287535776,1.3201,4157.1,4149.2,10.117]
[1760287535777,3.2078,4154.0,4152.9,3.2078]
[1760287535981,3.2078,4154.0,4149.2,10.117]
[1760287535982,2.5710625,4156.5,4153.9,3.2078]
[1760287536180,3.2078,4155.5,4153.6,3.2078]
[1760287536385,0.0021273,4155.5,4154.2,0.00284665]
[1760287536579,0.0021273,4155.5,4153.6,0.00233913]
[1760287536580,5.70258107,4155.4,4153.6,0.00233913]
[1760287536782,3.2078,4153.7,4151.2,3.2078]
[1760287536986,3.2078,4151.3,4149.0,7.83533305]
[1760287537179,3.2078,4151.3,4141.7,43.345]
[1760287537180,3.2078,4150.6,4147.2,0.17392364]
[1760287537386,3.2078,4148.5,4146.9,11.04313305]
[1760287537590,10.113,4150.5,4145.5,7.83533305]
[1760287537591,3.2078,4147.1,4145.5,7.83533305]
[1760287537780,0.0024565,4147.1,4146.3,7.83533305]
[1760287538086,3.2892,4149.1,4145.5,3.18387946]
[1760287538087,3.2078,4146.4,4145.8,7.83533305]
[1760287538288,3.2892,4149.1,4145.5,3.18387946]
[1760287538289,3.2078,4149.1,4146.8,3.1791]
[1760287538583,10.82785,4153.5,4145.5,0.00237946]
[1760287538584,3.2078,4149.7,4146.6,3.2078]
[1760287538786,2.56525267,4149.0,4147.9,3.2078]
[1760287539089,6.497,4150.6,4147.9,3.2078]
[1760287539090,2.56525267,4149.6,4148.3,7.83533305]
[1760287539284,0.00225198,4149.7,4149.5,0.00284665]
[1760287539586,3.2078,4155.0,4151.1,3.2078]
[1760287539895,3.2078,4153.1,4151.2,3.2078]
[1760287540076,2.6427459,4153.6,4153.0,3.2078]
[1760287540284,3.2078,4154.8,4153.0,3.2078]
[1760287540479,3.2078,4153.1,4151.4,3.2078]
[1760287540686,3.07231233,4153.5,4151.4,11.04313305]
[1760287540887,3.2078,4154.0,4152.9,3.2078]
[1760287541184,10.113,4156.0,4151.1,3.2078]
[1760287541185,3.2078,4153.3,4151.1,3.2078]
[1760287541388,3.2078,4151.6,4150.1,3.2078]
[1760287541578,0.00288001,4151.6,4150.1,2.88280665]
[1760287541783,3.2078,4150.6,4150.1,0.00288356]
[1760287542178,5.68407447,4150.5,4148.3,3.2078]
[1760287542380,3.2078,4149.2,4148.4,0.00288356]
[1760287542681,3.2078,4150.5,4149.1,3.2078]
[1760287542877,3.2078,4150.8,4148.9,3.2078]
[1760287543080,3.1107223,4150.4,4149.5,3.2078]
[1760287543282,3.2078,4149.9,4149.0,0.00288356]
[1760287543479,0.00288001,4151.6,4148.9,11.04529954]
[1760287543480,3.2078,4150.9,4149.5,3.2078]
[1760287543796,3.2078,4150.9,4149.1,0.00288356]
[1760287543797,3.20779645,4152.6,4150.8,3.2078]
[1760287543983,3.2078,4151.2,4149.9,3.2078]
[1760287544184,3.2078,4152.1,4151.5,0.00284665]
[1760287544389,3.2078,4152.7,4151.7,3.2078]
[1760287544583,3.2078,4152.0,4151.1,11.04313305]
[1760287544885,3.2078,4152.0,4148.9,0.00216649]
[1760287544886,0.00232889,4152.0,4151.9,7.83533305]
[1760287545088,0.00232889,4152.0,4151.9,0.00307199]
[1760287545283,3.21012889,4152.0,4151.9,0.00307199]
[1760287545494,0.00232889,4152.0,4151.9,0.00307199]
[1760287545684,0.00232889,4152.0,4151.9,0.00591864]
[1760287546093,4.5279,4154.0,4151.9,7.84125169]
[1760287546291,3.2078,4154.9,4153.8,3.2078]
[1760287546491,3.2078,4154.9,4154.3,3.2078]
[1760287546791,3.2078,4154.9,4153.1,7.83533305]
[1760287546792,3.2078,4154.4,4153.3,3.2078]
[1760287546992,3.2078,4154.4,4153.1,7.83533305]
[1760287546993,2.61550685,4154.8,4154.3,3.2078]
[1760287547185,0.00202951,4154.8,4154.3,3.2078]
[1760287547385,0.00202951,4154.8,4151.9,0.00307199]
[1760287547386,3.2078,4154.4,4152.3,3.2078]
[1760287547581,3.2078,4154.4,4151.9,0.00307199]
[1760287547582,3.2078,4154.4,4152.9,3.2078]
[1760287547784,0.4331,4153.6,4153.1,3.2078]
[1760287547990,3.7846,4153.6,4153.1,3.2078]
[1760287548188,5.53684356,4153.5,4151.9,3.21087199]
[1760287548387,3.3515,4155.1,4153.3,3.2078]
[1760287548591,3.3515,4155.1,4153.1,7.83533305]
[1760287548592,3.3515,4155.1,4154.2,3.2078]
[1760287548790,0.02086791,4154.5,4154.2,3.2078]
[1760287549188,3.2078,4156.5,4154.2,3.2078]
[1760287549387,3.3515,4155.8,4154.1,3.2078]
[1760287549586,14.02938,4155.9,4152.8,7.83533305]
[1760287549587,3.3515,4154.2,4152.8,7.83533305]
[1760287549785,0.43311,4153.5,4153.1,3.2078]
[1760287549991,3.2078,4153.6,4152.6,3.2078]
[1760287550191,10.82506,4154.6,4151.3,0.01039]
[1760287550192,3.3515,4152.6,4151.3,0.01039]
[1760287550490,3.2078,4151.5,4151.3,0.01039]
[1760287550693,6.5593,4151.4,4151.3,0.01039]
[1760287550886,3.3515,4149.4,4146.9,3.2078]
[1760287551188,3.3515,4149.4,4146.9,3.21077523]
[1760287551189,3.2078,4148.0,4146.9,3.21077523]
[1760287551382,3.2078,4147.6,4146.9,0.00297523]
[1760287551587,0.00219982,4149.4,4147.5,3.2078]
[1760287551588,3.2078,4148.3,4147.5,3.2078]
[1760287551787,3.2078,4148.3,4146.9,0.00297523]
[1760287551788,0.43375,4147.4,4146.9,0.00297523]
[1760287551986,6.5593,4147.0,4144.5,6.3777]
[1760287552190,6.5593,4147.0,4144.5,3.2078]
[1760287552191,3.2078,4146.3,4144.5,3.2078]
[1760287552384,3.3515,4144.8,4143.0,3.2078]
[1760287552586,3.2078,4143.8,4142.8,3.2078]
[1760287552796,3.2078,4143.4,4142.8,3.2078]
[1760287552992,0.00256095,4143.4,4142.8,3.20972342]
[1760287553185,3.3515,4141.3,4140.0,0.75876289]
[1760287553388,3.3515,4141.3,4138.9,2.11980123]
[1760287553389,3.2078,4140.5,4138.2,0.75876289]
[1760287553598,3.2078,4139.3,4138.3,3.2078]
[1760287553793,3.3515,4140.8,4136.2,1.09024826]
[1760287553794,5.7635032,4140.4,4138.5,3.2078]
[1760287553995,2.53620971,4139.2,4138.1,3.2078]
[1760287554296,0.00222018,4139.2,4138.6,3.2078]
[1760287554492,3.2078,4140.6,4139.1,3.2078]
[1760287554697,3.2078,4140.0,4138.5,3.2078]
[1760287554894,2.52478404,4140.5,4139.6,3.2078]
[1760287555198,3.2078,4141.1,4140.2,3.2078]
[1760287555592,3.3515,4142.4,4138.1,0.00265302]
[1760287555792,5.6082614,4141.0,4139.8,3.2078]
[1760287556094,10.114,4143.3,4139.9,3.2078]
[1760287556095,3.3515,4141.1,4139.9,3.2078]
[1760287556294,3.3515,4141.1,4138.1,0.00265302]
[1760287556295,2.51495667,4140.9,4140.5,3.2078]
[1760287556499,2.51495667,4141.7,4140.5,3.2078]
[1760287556793,0.01316523,4143.1,4141.6,3.2078]
[1760287556993,0.01316523,4143.2,4143.0,3.2078]
[1760287557200,3.3515,4144.7,4143.0,3.2078]
[1760287557388,7.83533305,4147.2,4139.5,0.75876289]
[1760287557394,3.2078,4147.0,4143.9,3.2078]
[1760287557591,0.01316523,4146.7,4146.2,3.2078]
[1760287557887,3.2078,4146.3,4144.7,3.2078]
[1760287558090,3.2078,4146.3,4140.1,1.58111962]
[1760287558091,0.00214548,4146.7,4145.8,3.2078]
[1760287558292,3.3515,4149.7,4146.5,3.2078]
[1760287558504,0.97777813,4149.6,4149.2,3.2078]
[1760287558693,3.3515,4149.4,4147.9,3.2078]
[1760287558899,2.64624422,4149.5,4147.9,3.2078]
[1760287559200,0.0029017,4149.5,4149.0,3.2078]
[1760287559499,3.2078,4149.2,4148.3,3.2078]
[1760287559698,0.0029017,4149.5,4148.3,3.2078]
[1760287559994,0.4337,4147.8,4145.0,3.2078]
[1760287560196,3.2078,4145.4,4143.8,3.2078]
[1760287560403,3.2078,4146.3,4144.8,3.2078]
[1760287560606,3.2078,4148.3,4146.1,0.3339]
[1760287560895,0.00249199,4148.3,4148.2,3.2078]
[1760287561100,3.2078,4149.1,4148.2,3.2078]
[1760287561298,3.2078,4152.3,4149.0,11.04313305]
[1760287561505,3.2078,4154.4,4151.2,11.04313305]
[1760287561802,3.3515,4153.6,4150.3,7.83533305]
[1760287561998,3.3515,4153.6,4151.8,3.2078]
[1760287562301,3.3515,4153.6,4153.5,3.2078]
[1760287562302,0.00177606,4153.6,4153.5,3.2078]
[1760287562593,0.00177606,4153.6,4153.0,3.2078]
[1760287562793,0.00177606,4153.6,4151.8,0.00296109]
[1760287562794,3.3424,4153.5,4151.8,0.00296109]
[1760287562995,3.2078,4153.2,4151.8,0.00296109]
[1760287563195,5.7442757,4153.6,4146.1,10.118]
[1760287563196,3.2078,4151.9,4150.0,3.2078]
[1760287563402,3.3424,4152.1,4150.0,3.2078]
[1760287563403,0.01166661,4151.0,4150.0,3.2078]
[1760287563603,3.2078,4150.1,4147.6,3.2078]
[1760287563791,3.3424,4150.9,4143.8,10.116]
[1760287563792,3.2078,4148.8,4147.3,3.2078]
[1760287564091,3.2078,4149.9,4147.9,7.83533305]
[1760287564293,6.5502,4152.2,4149.7,7.83533305]
[1760287564494,6.5502,4152.2,4147.3,0.00294119]
[1760287564495,0.43355,4149.3,4147.3,0.00294119]
[1760287564689,3.2078,4148.6,4147.3,0.00294119]
[1760287564895,3.2078,4148.2,4146.0,11.04313305]
[1760287565091,3.2078,4149.0,4146.8,7.83533305]
[1760287565295,8.82977843,4148.1,4145.1,2.861]
[1760287565497,0.43373,4147.6,4145.7,3.2078]
[1760287565802,0.00267729,4147.6,4147.2,3.2078]
[1760287566000,3.2078,4150.9,4147.5,7.83533305]
[1760287566199,3.2078,4150.9,4145.7,0.0030288]
[1760287566200,3.2078,4151.7,4148.9,3.2078]
[1760287566505,10.83094,4152.3,4150.1,3.2078]
[1760287566506,0.01215515,4150.3,4150.1,3.2078]
[1760287566807,3.2078,4150.4,4149.2,3.2078]
[1760287567099,3.3424,4151.5,4144.2,10.115]
[1760287567100,0.00202891,4150.3,4150.1,0.00257143]
[1760287567305,0.00202891,4150.3,4150.1,0.00177557]
[1760287567706,3.3424,4153.8,4150.2,7.83533305]
[1760287567898,0.94726962,4152.4,4151.9,3.2078]
[1760287568103,0.83154746,4155.4,4151.9,3.2078]
[1760287568104,4.5176,4155.2,4152.0,0.4707]
[1760287568304,0.83154746,4156.4,4154.8,11.04313305]
[1760287568508,0.83154746,4157.0,4155.9,3.2078]
[1760287568707,3.3424,4156.2,4154.6,3.2078]
[1760287569005,3.2078,4155.2,4153.4,3.45113268]
[1760287569212,3.2078,4154.8,4153.4,3.2078]
[1760287569411,3.2078,4154.8,4152.5,3.2078]
[1760287569600,3.3424,4155.2,4152.0,3.2078]
[1760287569601,3.2078,4153.0,4152.0,3.2078]
[1760287569905,10.83286,4151.6,4150.0,3.2078]
[1760287570106,3.3424,4151.7,4150.0,0.00282315]
[1760287570300,2.59729313,4151.5,4150.0,0.00282315]
[1760287570501,0.43357,4149.0,4148.1,3.2078]
[1760287570704,0.43357,4149.0,4143.3,3.02164157]
[1760287570705,3.2078,4150.4,4148.9,7.83533305]
[1760287570906,0.83154746,4157.7,4152.7,3.2078]
[1760287571104,0.83154746,4157.7,4148.5,43.341]
[1760287571105,2.36698476,4157.2,4157.0,3.2078]
[1760287571301,1.2092496,4157.4,4157.1,7.83533305]
[1760287571496,1.21146615,4157.4,4157.3,3.2078]
[1760287571709,1.21146615,4157.4,4149.1,3.07106319]
[1760287571710,0.45315645,4157.3,4155.6,3.2078]
[1760287571896,3.2078,4155.7,4153.9,3.1729]
[1760287572097,3.2078,4154.2,4153.9,0.00222596]
[1760287572298,0.00247729,4154.2,4153.9,0.00222596]
[1760287572502,0.00247729,4154.2,4153.9,7.83755901]
[1760287572704,0.00247729,4154.2,4153.9,0.00222596]
[1760287572904,2.55891798,4154.1,4152.4,1.3366]
[1760287573104,3.2078,4156.1,4153.8,3.2078]
[1760287573307,3.2078,4156.1,4155.3,7.83533305]
[1760287573811,3.2078,4157.6,4156.0,7.83533305]
[1760287574005,1.2092496,4158.1,4157.3,3.19585587]
[1760287574199,13.3178,4158.3,4152.4,1.3366]
[1760287574200,3.2078,4157.4,4155.9,3.2078]
[1760287574403,3.2078,4156.7,4155.8,7.83533305]
[1760287574604,0.00209708,4157.6,4156.3,3.1729]
[1760287574903,3.2078,4156.5,4153.7,3.1729]
[1760287575214,3.2078,4153.8,4152.6,3.1729]
[1760287575400,10.108,4154.2,4152.9,7.83533305]
[1760287575711,10.108,4154.2,4147.9,10.108]
[1760287575712,3.2078,4153.7,4152.8,3.2078]
[1760287575902,3.2078,4154.1,4153.1,3.2078]
[1760287576104,3.3424,4153.5,4152.0,3.2078]
[1760287576305,3.2078,4152.1,4150.1,3.2078]
[1760287576503,10.82672,4153.9,4149.9,3.1729]
[1760287576504,3.2078,4151.1,4150.3,3.2078]
[1760287576704,3.21067117,4151.1,4149.8,3.2078]
[1760287576910,3.2078,4152.0,4151.0,3.1729]
[1760287577208,3.2078,4152.0,4150.9,3.2078]
[1760287577209,2.68918195,4151.0,4150.6,3.2078]
[1760287577412,3.10445419,4151.9,4150.6,3.2078]
[1760287577413,5.79363614,4151.9,4150.7,3.1729]
[1760287577603,3.2078,4151.5,4150.6,3.2078]
[1760287577810,3.2078,4152.0,4151.1,3.2078]
[1760287578108,3.2078,4151.2,4150.6,0.00251879]
[1760287578414,3.2078,4150.7,4150.6,0.00233534]
[1760287578602,6.56303992,4150.7,4150.6,0.00233534]
[1760287578805,5.90560788,4150.7,4149.9,3.2078]
[1760287579009,0.00234066,4151.5,4150.6,3.2078]
[1760287579513,14.5725,4152.6,4151.1,3.2078]
[1760287579704,14.5725,4152.6,4150.7,0.00466678]
[1760287579705,14.5725,4152.6,4151.7,3.2078]
[1760287580103,3.2078,4151.9,4148.2,1.3217]
[1760287580308,3.2078,4148.3,4147.3,0.00466678]
[1760287580601,3.2078,4148.1,4147.3,0.00200007]
[1760287580806,0.00177195,4148.3,4147.3,0.00200007]
[1760287580807,3.2078,4147.4,4147.3,0.00200007]
[1760287581004,3.2078,4147.4,4145.8,3.2078]
[1760287581207,3.2078,4147.4,4141.8,3.2078]
[1760287581208,10.85074,4144.7,4141.8,3.2078]
[1760287581517,10.85074,4144.7,4142.0,3.2078]
[1760287581518,3.2078,4143.1,4142.0,3.2078]
[1760287581704,10.85387,4143.5,4140.4,3.2078]
[1760287581909,6.5502,4141.3,4138.4,6.3807]
[1760287582105,3.2078,4140.5,4137.6,3.2078]
[1760287582305,3.2078,4141.1,4138.8,7.83533305]
[1760287582610,3.2078,4141.1,4140.1,3.2078]
[1760287582802,3.2078,4143.4,4140.7,7.83533305]
[1760287583009,3.2078,4143.4,4142.1,3.2078]
[1760287583205,3.2078,4142.3,4140.3,3.2078]
[1760287583409,3.3424,4140.3,4140.1,0.00175736]
[1760287583602,3.2078,4140.8,4140.1,0.00175736]
[1760287583812,9.68073911,4140.2,4140.1,0.00175736]
[1760287584010,3.2078,4140.2,4140.1,0.00175736]
[1760287584311,3.2078,4140.7,4140.1,0.00175736]
[1760287584512,3.3424,4140.1,4138.4,3.2078]
[1760287584716,3.2078,4139.1,4138.4,3.2078]
[1760287584907,3.2078,4138.5,4137.5,3.2078]
[1760287585209,3.2078,4137.6,4136.4,3.2078]
[1760287585410,3.2078,4138.1,4137.0,3.2078]
[1760287585712,0.00261711,4138.1,4137.6,3.2078]
[1760287585915,1.01072662,4139.2,4137.7,7.83533305]
[1760287586114,3.2078,4138.7,4137.8,3.2078]
[1760287586606,3.2078,4141.4,4138.6,11.04313305]
[1760287586809,3.2078,4140.2,4139.2,3.2078]
[1760287587013,3.2078,4139.7,4138.5,3.2078]
[1760287587208,4.4655,4139.2,4138.5,3.04515778]
[1760287587411,5.78673162,4139.6,4138.5,3.04515778]
[1760287587712,3.2078,4141.2,4139.5,3.2078]
[1760287587913,10.85342,4143.7,4137.0,0.00249539]
[1760287587914,3.2078,4143.1,4141.0,7.83533305]
[1760287588107,3.2078,4143.3,4141.3,3.2078]
[1760287588308,3.3424,4141.6,4138.5,3.2078]
[1760287588608,1.2577,4141.8,4140.8,3.2078]
[1760287588806,3.2078,4141.8,4140.8,3.2078]
[1760287589104,3.2078,4140.9,4140.8,0.00281602]
[1760287589412,0.00170694,4141.8,4140.8,0.00281602]
[1760287589413,3.2078,4141.4,4140.8,0.00281602]
[1760287589804,0.00170694,4141.8,4141.2,11.04313305]
[1760287590005,0.00170694,4141.8,4140.8,0.00281602]
[1760287590006,3.2078,4141.3,4140.8,0.00281602]
[1760287590614,0.00170694,4141.8,4140.8,0.00281602]
[1760287591009,0.00170694,4141.8,4141.2,3.2078]
[1760287591311,3.3424,4141.6,4140.8,0.00281602]
[1760287591511,9.03818002,4141.7,4139.0,3.2078]
[1760287591512,3.3424,4140.6,4139.0,3.2078]
[1760287591708,3.3424,4139.4,4138.1,3.2078]
[1760287591912,3.2078,4139.0,4138.1,3.2078]
[1760287592112,3.1720331,4139.3,4138.1,3.2078]
[1760287592308,3.2078,4138.6,4136.8,3.2078]
[1760287592513,0.00297839,4138.6,4138.0,3.2078]
[1760287592818,3.2078,4141.3,4138.5,3.2078]
[1760287593031,3.2078,4142.3,4140.9,3.2078]
[1760287593205,1.3202,4142.5,4141.4,3.2078]
[1760287593410,2.55665073,4142.2,4140.7,3.2078]
[1760287593605,3.2078,4140.8,4134.2,1.98486081]
[1760287593809,3.2078,4138.5,4136.6,3.2078]
[1760287594010,3.2078,4138.0,4136.0,6.4181]
[1760287594217,10.127,4138.7,4136.0,6.4181]
[1760287594218,3.2078,4137.3,4136.0,3.2103]
[1760287594408,3.2078,4138.0,4136.0,3.2103]
[1760287594607,3.2078,4137.4,4136.4,3.2078]
[1760287594808,3.2078,4137.9,4136.4,3.2078]
[1760287595016,0.00190274,4138.0,4136.0,3.21293868]
[1760287595017,0.00190274,4138.0,4137.7,3.2231]
[1760287595209,0.00190274,4138.0,4136.2,6.4309]
[1760287595412,0.00190274,4138.0,4136.0,0.00263868]
[1760287595413,0.00190274,4138.0,4136.0,3.22573868]
[1760287595714,0.00190274,4138.0,4130.2,1.98486081]
[1760287595715,3.3468,4134.5,4132.1,3.2078]
[1760287596019,3.3468,4134.5,4131.4,3.2231]
[1760287596020,3.2078,4132.5,4131.4,3.2231]
[1760287596211,3.2078,4132.4,4131.6,2.9662]
[1760287596520,3.2078,4135.8,4132.9,0.00259982]
[1760287596715,11.96007,4136.2,4132.1,3.2078]
[1760287596716,4.528,4135.0,4132.1,3.2078]
[1760287596908,3.2078,4134.3,4132.2,2.11743]
[1760287597106,3.2078,4134.3,4133.1,3.2078]
[1760287597306,3.2078,4136.3,4134.2,0.00259982]
[1760287597507,3.2078,4137.0,4135.7,0.00259982]
[1760287597707,3.3468,4137.9,4133.1,7.85205023]
[1760287597708,3.3468,4137.9,4136.1,3.2078]
[1760287597911,3.2078,4138.1,4137.2,3.2078]
[1760287598216,10.133,4140.3,4137.2,3.2078]
[1760287598217,3.2078,4139.7,4137.5,0.00259982]
[1760287598410,3.2078,4139.7,4134.3,17.98505023]
[1760287598411,0.43462,4139.0,4137.9,3.2078]
[1760287598622,3.21062976,4139.0,4137.9,0.00169749]
[1760287598919,0.00282976,4139.0,4137.9,0.00169749]
[1760287599116,0.00282976,4139.0,4138.5,0.00259982]
[1760287599314,0.00282976,4139.0,4137.9,0.00169749]
[1760287599515,3.3468,4138.1,4137.9,0.00169749]
[1760287599712,0.43472,4138.0,4137.9,0.00169749]
[1760287599915,3.21062976,4139.0,4137.9,0.00429731]
[1760287600116,3.2078,4138.5,4136.9,3.2078]
[1760287600320,5.86751862,4138.9,4136.9,3.2078]
[1760287600523,3.2078,4137.2,4136.2,3.2078]
[1760287600914,3.2078,4137.6,4136.2,3.2078]
[1760287601212,3.64265,4136.8,4134.7,3.2078]
[1760287601409,3.2078,4136.1,4134.6,3.2078]
[1760287601613,3.2078,4135.1,4134.7,0.00179731]
[1760287601820,3.2078,4135.1,4133.2,3.2078]
[1760287602015,3.2078,4135.9,4133.7,3.2078]
[1760287602417,3.2078,4135.4,4133.7,3.20970475]
[1760287602724,0.00287111,4135.9,4135.0,3.2078]
[1760287602916,3.2078,4138.0,4135.6,3.2078]
[1760287603111,3.2078,4139.1,4137.9,3.2078]
[1760287603313,3.2078,4139.1,4136.4,3.2078]
[1760287603514,2.58451993,4139.2,4138.3,3.2078]
[1760287603714,2.58451993,4139.2,4137.7,0.16424848]
[1760287603715,3.2078,4138.4,4137.7,0.16424848]
[1760287603914,3.2078,4138.4,4137.7,0.16709429]
[1760287603915,3.2078,4137.8,4137.7,0.16709429]
[1760287604118,0.00236977,4138.4,4137.7,0.16709429]
[1760287604319,3.3468,4137.8,4137.7,0.16709429]
[1760287604625,3.2078,4138.0,4137.7,0.16709429]
[1760287604821,1.08709,4137.0,4134.5,3.2078]
[1760287605026,3.2078,4134.7,4133.6,3.2078]
[1760287605227,3.2078,4134.3,4133.1,3.2078]
[1760287605815,3.2078,4134.9,4134.2,3.2078]
[1760287606015,3.2078,4136.1,4134.8,3.2078]
[1760287606319,3.2078,4135.1,4133.4,3.2078]
[1760287606520,8.99173668,4136.0,4134.4,3.2078]
[1760287606719,3.2078,4136.0,4134.9,3.2078]
[1760287606914,3.2078,4136.0,4133.1,0.00257972]
[1760287606915,3.2078,4135.4,4135.2,0.00179731]
[1760287607116,3.2078,4135.4,4134.4,3.1828]
[1760287607319,2.54160368,4135.9,4134.4,3.1828]
[1760287607526,3.2078,4135.2,4134.6,0.00179731]
[1760287607720,3.2078,4134.7,4133.1,0.00257972]
[1760287607923,3.2078,4135.0,4133.2,3.2078]
[1760287608117,0.00267423,4136.0,4134.7,3.2078]
[1760287608318,0.00267423,4136.0,4135.8,0.00179731]
[1760287608519,10.14,4138.4,4135.8,0.00179731]
[1760287608520,3.2078,4138.4,4135.9,0.0119]
[1760287608719,3.2078,4140.7,4138.0,3.2078]
[1760287608920,3.2078,4140.7,4135.9,7.85205023]
[1760287608921,4.528,4140.0,4138.7,3.2078]
[1760287609217,2.52689284,4139.9,4137.7,3.2078]
[1760287609422,3.2078,4139.5,4138.1,3.2078]
[1760287609622,3.21004266,4139.5,4139.0,0.00179731]
[1760287609920,0.00224266,4139.5,4138.7,3.2078]
[1760287610112,0.00224266,4139.5,4138.1,0.00311226]
[1760287610317,3.2078,4138.6,4138.1,0.00311226]
[1760287610627,0.00224266,4139.5,4138.1,0.00311226]
[1760287610927,3.2078,4140.7,4139.4,0.00179731]
[1760287611114,3.2078,4140.7,4139.6,3.2078]
[1760287611427,3.2078,4140.7,4139.1,3.2078]
[1760287611722,3.2078,4139.6,4138.1,0.00311226]
[1760287611921,3.2078,4139.0,4138.1,0.00311226]
[1760287612118,0.43449,4140.2,4138.1,0.00311226]
[1760287612119,3.2078,4139.9,4138.1,0.00311226]
[1760287612319,3.2078,4138.7,4138.1,0.00311226]
[1760287612523,3.2078,4138.2,4135.4,3.2078]
[1760287612829,3.2078,4136.6,4134.9,3.2078]
[1760287613125,3.2078,4137.5,4135.5,3.2078]
[1760287613325,3.2078,4137.5,4135.1,7.85205023]
[1760287613326,3.2078,4138.1,4137.0,3.2078]
[1760287613622,0.00265473,4138.1,4137.7,0.00179731]
[1760287613831,3.21045473,4138.1,4137.0,0.00296062]
[1760287614017,3.2078,4140.2,4137.5,3.2078]
[1760287614229,3.67621,4141.0,4138.1,3.2078]
[1760287614230,3.2078,4139.8,4138.1,3.2078]
[1760287614521,2.53614928,4139.9,4138.0,3.2078]
[1760287614722,3.2078,4140.3,4139.3,0.00179731]
[1760287614919,3.2078,4140.3,4138.5,3.2078]
[1760287615221,3.2078,4139.8,4138.5,3.2078]
[1760287615624,0.0023957,4140.3,4139.7,0.00179731]
[1760287615820,0.0023957,4140.3,4138.9,3.2078]
[1760287616124,3.2078,4140.1,4138.2,3.2078]
[1760287616322,0.0023957,4140.3,4139.4,3.2078]
[1760287616519,3.2078,4142.9,4140.2,3.2078]
[1760287616719,3.2078,4142.0,4140.3,3.2078]
[1760287616926,3.2078,4142.6,4140.3,3.2078]
[1760287617315,3.2078,4142.7,4140.8,3.2078]
[1760287617519,3.2078,4142.7,4140.8,0.00297495]
[1760287617520,3.21003559,4142.7,4140.8,0.00297495]
[1760287617716,3.21003559,4142.7,4141.5,3.2078]
[1760287618014,0.00223559,4142.7,4142.4,0.00179731]
[1760287618214,0.00223559,4142.7,4142.1,3.2078]
[1760287618417,0.00223559,4142.7,4142.6,0.00179731]
[1760287618629,3.2078,4144.2,4142.6,3.20959731]
[1760287618824,3.2078,4144.2,4142.6,3.2078]
[1760287619027,3.2078,4144.2,4143.2,3.2078]
[1760287619320,3.2078,4144.2,4143.7,3.20959731]
[1760287619529,3.2078,4145.1,4144.1,0.00179731]
[1760287619826,0.00216669,4144.2,4144.1,0.00240779]
[1760287620014,0.00216669,4144.2,4144.1,3.2078]
[1760287620219,0.22,4145.3,4144.1,3.2078]
[1760287620523,3.2078,4148.6,4145.2,3.2078]